fUST/lending_fUST_20240203
["ID","MTS","AMOUNT","RATE_DAILY","PERIOD"]
[313225593,1706970640339,-500.0,0.00027671,2]
[313225594,1706970640349,-534.13,0.00027671,2]
[313225595,1706970640358,-1453.18,0.00027671,2]
[313225596,1706970640367,-500.0,0.00027671,2]
[313225597,1706970640376,-500.0,0.00027671,2]
[313225598,1706970640386,-500.0,0.00027671,2]
[313225599,1706970640395,-500.0,0.00027671,2]
[313225600,1706970640405,-500.0,0.00027671,2]
[313225601,1706970640414,-500.0,0.00027671,2]
[313225602,1706970640425,-500.0,0.00027671,2]
[313225603,1706970640435,-500.0,0.00027671,2]
[313225604,1706970640445,-500.0,0.00027671,2]
[313225605,1706970640454,-741.37,0.00027671,2]
[313225606,1706970640464,-1201.73,0.00027671,2]
[313225607,1706970640474,-1734.29,0.00027671,2]
[313225608,1706970640483,-500.0,0.00027671,2]
[313225609,1706970640493,-500.0,0.00027671,2]
[313225610,1706970640503,-3129.74,0.00027671,2]
[313225611,1706970640514,-500.0,0.00027671,2]
[313225612,1706970640524,-10865.22,0.00027671,2]
[313225613,1706970640533,-500.0,0.00027671,2]
[313225614,1706970640543,-4533.96,0.00027671,2]
[313225615,1706970640553,-2481.11,0.00027671,2]
[313225616,1706970640564,-500.0,0.00027671,2]
[313225617,1706970640575,-780.35887145,0.00027718,2]
[313225618,1706970640587,-155.30404275,0.00027858,2]
[313225620,1706970640596,-161.59274908,0.00027943,2]
[313225621,1706970640607,-10730.07997643,0.00027944,2]
[313225622,1706970640617,-151.0,0.00027944,2]
[313225623,1706970640626,-194.057992,0.00027944,2]
[313225624,1706970640636,-151.0,0.00027944,2]
[313225625,1706970640645,-319.164894,0.00027944,2]
[313225626,1706970640655,-319.164894,0.00027944,2]
[313225627,1706970640665,-500.0,0.00027945,2]
[313225628,1706970640674,-500.0,0.00027945,2]
[313225629,1706970640683,-500.0,0.00027945,2]
[313225630,1706970640692,-500.0,0.00027945,2]
[313225631,1706970640702,-151.0,0.00027945,2]
[313225632,1706970640711,-500.0,0.00027945,2]
[313225633,1706970640720,-500.0,0.00027945,2]
[313225634,1706970640729,-500.0,0.00027945,2]
[313225635,1706970640738,-500.0,0.00027945,2]
[313225636,1706970640748,-500.0,0.00027945,2]
[313225637,1706970640757,-500.0,0.00027945,2]
[313225638,1706970640766,-770.64,0.00027945,2]
[313225639,1706970640775,-500.0,0.00027945,2]
[313225640,1706970640784,-266.37695117,0.00027945,2]
[313225641,1706970640793,-187.62398123,0.00027945,2]
[313225642,1706970640802,-500.0,0.00027945,2]
[313225644,1706970640812,-500.0,0.00027945,2]
[313225646,1706970640821,-500.0,0.00027945,2]
[313225648,1706970640830,-500.0,0.00027945,2]
[313225649,1706970640839,-534.13,0.00027945,2]
[313225650,1706970640848,-1453.18,0.00027945,2]
[313225651,1706970640857,-500.0,0.00027945,2]
[313225652,1706970640867,-500.0,0.00027945,2]
[313225653,1706970640959,-500.0,0.00027945,2]
[313225654,1706970640968,-500.0,0.00027945,2]
[313225655,1706970640977,-500.0,0.00027945,2]
[313225656,1706970640986,-500.0,0.00027945,2]
[313225657,1706970640996,-741.37,0.00027945,2]
[313225658,1706970641005,-1201.73,0.00027945,2]
[313225659,1706970641014,-1734.29,0.00027945,2]
[313225660,1706970641023,-500.0,0.00027945,2]
[313225661,1706970641031,-3129.74,0.00027945,2]
[313225662,1706970641040,-10865.22,0.00027945,2]
[313225663,1706970641049,-4533.96,0.00027945,2]
[313225664,1706970641058,-2481.11,0.00027945,2]
[313225665,1706970641068,-5216.01545379,0.00027997,2]
[313225666,1706970641077,-904.27081356,0.00027997,2]
[313225667,1706970641086,-166.97150548,0.00027998,2]
[313225668,1706970641095,-296.22655429,0.00027998,2]
[313225669,1706970641104,-181.15956934,0.00027998,2]
[313225670,1706970641113,-199.40706309,0.00027998,2]
[313225671,1706970641122,-489.39541102,0.00027998,2]
[313225672,1706970641131,-155.33135007,0.00027998,2]
[313225673,1706970641140,-1854.10885603,0.00027998,2]
[313225674,1706970641149,-1397.1010222,0.00027998,2]
[313225675,1706970641158,-216.13592934,0.00027998,2]
[313225676,1706970641167,-346.04207608,0.00027998,2]
[313225677,1706970641176,-155.49210809,0.00027998,2]
[313225678,1706970641185,-20885.80394062,0.00027998,2]
[313225679,1706970641195,-151.0,0.00027998,2]
[313225680,1706970641204,-151.0,0.00027998,2]
[313225681,1706970641213,-151.0,0.00027998,2]
[313225682,1706970641222,-319.164894,0.00027998,2]
[313225683,1706970641231,-319.164894,0.00027998,2]
[313225684,1706970641241,-424.66872478,0.00027999,2]
[313225685,1706970641251,-217.48851757,0.00027999,2]
[313225686,1706970641261,-500.0,0.00027999,2]
[313225687,1706970641271,-500.0,0.00027999,2]
[313225688,1706970641281,-500.0,0.00027999,2]
[313225689,1706970641290,-500.0,0.00027999,2]
[313225690,1706970641299,-500.0,0.00027999,2]
[313225691,1706970641309,-500.0,0.00027999,2]
[313225692,1706970641318,-500.0,0.00027999,2]
[313225693,1706970641327,-441.09943157,0.00027999,2]
[313225694,1706970641336,-548.877159,0.00027999,2]
[313225695,1706970641345,-476.32961329,0.00027999,2]
[313225696,1706970641354,-26001.67372455,0.00028,2]
[313225697,1706970641364,-51099.57217898,0.00028,2]
[313225698,1706970641373,-300.0,0.00028,2]
[313225699,1706970641382,-2500.0,0.00028,2]
[313225700,1706970641391,-279.73730157,0.00028,2]
[313225701,1706970641403,-1829.96950121,0.00028,2]
[313225702,1706970641412,-2087.50321187,0.00028,2]
[313225703,1706970641422,-225.76293109,0.00028,2]
[313225704,1706970641431,-608.02615365,0.00028,2]
[313225705,1706970641442,-500.0,0.00028,2]
[313225706,1706970641451,-151.0,0.00028,2]
[313225707,1706970641460,-151.0,0.00028,2]
[313225708,1706970641471,-319.164894,0.00028,2]
[313225709,1706970641480,-319.164894,0.00028,2]
[313225710,1706970641490,-151.0,0.00028066,2]
[313225711,1706970641501,-620.00000191,0.00028066,2]
[313225712,1706970641510,-200.22,0.000281,4]
[313225713,1706970641519,-18803.20102964,0.00028119,2]
[313225714,1706970641530,-500.0,0.00028219,2]
[313225715,1706970641539,-500.0,0.00028219,2]
[313225716,1706970641548,-500.0,0.00028219,2]
[313225717,1706970641558,-770.64,0.00028219,2]
[313225718,1706970641570,-500.0,0.00028219,2]
[313225719,1706970641579,-500.0,0.00028219,2]
[313225720,1706970641589,-500.0,0.00028219,2]
[313225721,1706970641598,-534.13,0.00028219,2]
[313225722,1706970641610,-1453.18,0.00028219,2]
[313225723,1706970641619,-500.0,0.00028219,2]
[313225724,1706970641630,-500.0,0.00028219,2]
[313225725,1706970641639,-195.13,0.00028219,2]
[313225726,1706970641649,-500.0,0.00028219,2]
[313225727,1706970641660,-741.37,0.00028219,2]
[313225728,1706970641670,-1201.73,0.00028219,2]
[313225729,1706970641680,-1734.29,0.00028219,2]
[313225730,1706970641690,-500.0,0.00028219,2]
[313225731,1706970641700,-3129.74,0.00028219,2]
[313225732,1706970641710,-10865.22,0.00028219,2]
[313225733,1706970641721,-3510.48952944,0.00028219,2]
[313225734,1706970641763,18940.25174952,0.0002001,2]
[313225735,1706970641808,-4167.08,0.00025286,3]
[313225736,1706970641817,-474.96707827,0.00027397,2]
[313225737,1706970641827,-1023.47047056,0.00028219,2]
[313225738,1706970641837,-1669.03118031,0.00028219,2]
[313225739,1706970641900,-812.07881969,0.00028219,2]
[313225740,1706970641910,-1687.92118031,0.00028421,5]
[313225741,1706970641923,-423.09540388,0.00028421,5]
[313225752,1706970642693,-1557.52705378,0.00028421,5]
[313225753,1706970642747,-1331.45636203,0.00028421,5]
[313225754,1706970642757,-151.0,0.00028421,2]
[313225755,1706970642766,-151.0,0.00028421,2]
[313225756,1706970642775,-319.164894,0.00028421,2]
[313225757,1706970642785,-319.164894,0.00028421,2]
[313225758,1706970642794,-25.98180487,0.00028426,5]
[313225763,1706970645811,-4974.01819513,0.00028426,5]
[313225764,1706970645820,-5000.0,0.00028429,5]
[313225765,1706970645829,-5000.0,0.00028432,5]
[313225766,1706970645839,-15333.36195954,0.00028493,2]
[313225767,1706970645851,-4666.63804046,0.00028493,2]
[313225768,1706970645859,-500.0,0.00028493,2]
[313225769,1706970645868,-509.17529652,0.00028493,2]
[313225772,1706970645877,-770.64,0.00028493,2]
[313225775,1706970645886,-500.0,0.00028493,2]
[313225776,1706970645895,-500.0,0.00028493,2]
[313225777,1706970645903,-500.0,0.00028493,2]
[313225778,1706970645912,-534.13,0.00028493,2]
[313225779,1706970645921,-1453.18,0.00028493,2]
[313225780,1706970645930,-167.69,0.00028493,2]
[313225781,1706970645939,-500.0,0.00028493,2]
[313225782,1706970645948,-741.37,0.00028493,2]
[313225783,1706970645957,-1201.73,0.00028493,2]
[313225784,1706970645965,-1734.29,0.00028493,2]
[313225785,1706970645974,-500.0,0.00028493,2]
[313225786,1706970645983,-3129.74,0.00028493,2]
[313225787,1706970645992,-10865.22,0.00028493,2]
[313225788,1706970646001,-4533.96,0.00028493,2]
[313225789,1706970646010,-2481.11,0.00028493,2]
[313225790,1706970646019,-300.0,0.000285,2]
[313225791,1706970646028,-1000.0,0.00028755,2]
[313225792,1706970646038,-1000.0,0.00028765,2]
[313225793,1706970646046,-500.0,0.00028767,2]
[313225794,1706970646055,-166.386198,0.00028767,2]
[313225795,1706970646065,-770.64,0.00028767,2]
[313225796,1706970646073,-500.0,0.00028767,2]
[313225797,1706970646082,-500.0,0.00028767,2]
[313225798,1706970646091,-319.164894,0.00028767,2]
[313225799,1706970646100,-319.164894,0.00028767,2]
[313225800,1706970646109,-500.0,0.00028767,2]
[313225801,1706970646118,-534.13,0.00028767,2]
[313225802,1706970646127,-1453.18,0.00028767,2]
[313225803,1706970646136,-500.0,0.00028767,2]
[313225804,1706970646145,-741.37,0.00028767,2]
[313225805,1706970646154,-1201.73,0.00028767,2]
[313225806,1706970646163,-1734.29,0.00028767,2]
[313225807,1706970646172,-500.0,0.00028767,2]
[313225808,1706970646181,-3129.74,0.00028767,2]
[313225809,1706970646190,-10865.22,0.00028767,2]
[313225810,1706970646200,-4533.96,0.00028767,2]
[313225811,1706970646209,-2481.11,0.00028767,2]
[313225812,1706970646219,-22540.91835848,0.000288,4]
[313225813,1706970646228,-1000.0,0.00028804,2]
[313225814,1706970646237,-1000.0,0.0002884,2]
[313225815,1706970646246,-1000.0,0.00028858,2]
[313225816,1706970646256,-1000.0,0.00028888,2]
[313225817,1706970646265,-1000.0,0.00028888,2]
[313225818,1706970646274,-1000.0,0.00028892,2]
[313225819,1706970646283,-1000.0,0.00028914,2]
[313225820,1706970646293,-1000.0,0.00028923,2]
[313225821,1706970646303,-1000.0,0.00028927,2]
[313225822,1706970646312,-1000.0,0.00028934,2]
[313225823,1706970646322,-1000.0,0.00028948,2]
[313225824,1706970646331,-151.03693966,0.00028956,2]
[313225825,1706970646340,-1124.64133264,0.00028964,2]
[313225826,1706970646349,-1000.0,0.00028977,2]
[313225827,1706970646358,-2010.7930154,0.00028998,2]
[313225828,1706970646368,-435.83763613,0.00028999,2]
[313225829,1706970646377,-623.07448613,0.00028999,2]
[313225830,1706970646387,-1000.0,0.00029,29]
[313225831,1706970646396,-4924.0,0.00029,2]
[313225832,1706970646405,-283.46476359,0.00029,2]
[313225833,1706970646414,-1700.0,0.00029,7]
[313225834,1706970646423,-376.35893675,0.00029,2]
[313225835,1706970646432,-48058.38478644,0.00029,7]
[313225836,1706970646441,-813.71313669,0.00029,2]
[313225837,1706970646451,-1012.27629002,0.00029,2]
[313225838,1706970646460,-1111.36041845,0.00029,2]
[313225839,1706970646469,-155.02046238,0.00029,2]
[313225840,1706970646479,-300.0,0.00029,2]
[313225841,1706970646488,-500.0,0.00029,2]
[313225842,1706970646498,-581.185186,0.00029,2]
[313225843,1706970646508,-171.651998,0.00029,2]
[313225844,1706970646518,-319.164894,0.00029,2]
[313225845,1706970646526,-319.164894,0.00029,2]
[313225846,1706970646536,-1154.0,0.00029,4]
[313225847,1706970646545,-394.7096,0.00029,2]
[313225848,1706970646554,-855.703625,0.00029003,2]
[313225849,1706970646563,-548.709029,0.00029003,2]
[313225850,1706970646572,-151.0,0.00029032,2]
[313225851,1706970646583,-155.67700042,0.00029039,2]
[313225852,1706970646594,-500.0,0.00029041,2]
[313225853,1706970646603,-770.64,0.00029041,2]
[313225854,1706970646612,-500.0,0.00029041,2]
[313225855,1706970646622,-500.0,0.00029041,2]
[313225856,1706970646633,-500.0,0.00029041,2]
[313225857,1706970646642,-534.13,0.00029041,2]
[313225858,1706970646651,-1453.18,0.00029041,2]
[313225859,1706970646660,-500.0,0.00029041,2]
[313225860,1706970646670,-741.37,0.00029041,2]
[313225861,1706970646680,-1201.73,0.00029041,2]
[313225862,1706970646690,-1734.29,0.00029041,2]
[313225863,1706970646700,-500.0,0.00029041,2]
[313225864,1706970646709,-3129.74,0.00029041,2]
[313225865,1706970646718,-10865.22,0.00029041,2]
[313225866,1706970646728,-4533.96,0.00029041,2]
[313225867,1706970646737,-2481.11,0.00029041,2]
[313225868,1706970646746,-10827.30763311,0.000293,2]
[313225869,1706970646755,-500.0,0.00029315,2]
[313225870,1706970646764,-770.64,0.00029315,2]
[313225871,1706970646773,-500.0,0.00029315,2]
[313225872,1706970646781,-500.0,0.00029315,2]
[313225873,1706970646790,-319.164894,0.00029315,2]
[313225874,1706970646800,-319.164894,0.00029315,2]
[313225875,1706970646809,-500.0,0.00029315,2]
[313225876,1706970646818,-534.13,0.00029315,2]
[313225877,1706970646827,-1453.18,0.00029315,2]
[313225878,1706970646836,-500.0,0.00029315,2]
[313225879,1706970646845,-741.37,0.00029315,2]
[313225880,1706970646854,-1201.73,0.00029315,2]
[313225881,1706970646863,-1734.29,0.00029315,2]
[313225882,1706970646872,-500.0,0.00029315,2]
[313225883,1706970646881,-3129.74,0.00029315,2]
[313225884,1706970646890,-10865.22,0.00029315,2]
[313225885,1706970646899,-4533.96,0.00029315,2]
[313225886,1706970646908,-2481.11,0.00029315,2]
[313225887,1706970646917,-212.433075,0.00029315,2]
[313225888,1706970646928,-157.5348743,0.00029315,2]
[313225889,1706970646938,-153.0000001,0.00029315,2]
[313225890,1706970647029,-153.0,0.00029315,2]
[313225891,1706970647039,-153.0,0.00029315,2]
[313225892,1706970647050,-199.7424242,0.00029315,2]
[313225893,1706970647060,-199.7424242,0.00029315,2]
[313225894,1706970647071,-199.7424242,0.00029315,2]
[313225895,1706970647082,-199.7424242,0.00029315,2]
[313225896,1706970647092,-199.3566912,0.00029315,2]
[313225897,1706970647101,-1025.3750614,0.00029336,4]
[313225898,1706970647110,-151.02567436,0.00029348,7]
[313225899,1706970647120,-200.0,0.00029351,15]
[313225900,1706970647129,-348.0,0.00029351,15]
[313225901,1706970647139,-855.703625,0.00029361,2]
[313225902,1706970647148,-548.709029,0.00029361,2]
[313225903,1706970647158,-620.0000001,0.0002947,2]
[313225904,1706970647168,-700.6735564,0.000295,5]
[313225905,1706970647177,-300.0,0.000295,2]
[313225906,1706970647186,-500.0,0.00029589,2]
[313225907,1706970647196,-770.64,0.00029589,2]
[313225908,1706970647205,-480.15145159,0.00029589,2]
[313225909,1706970647216,-500.0,0.00029589,2]
[313225910,1706970647226,-500.0,0.00029589,2]
[313225911,1706970647236,-534.13,0.00029589,2]
[313225912,1706970647245,-1453.18,0.00029589,2]
[313225913,1706970647256,-500.0,0.00029589,2]
[313225914,1706970647265,-741.37,0.00029589,2]
[313225915,1706970647275,-1201.73,0.00029589,2]
[313225916,1706970647284,-1734.29,0.00029589,2]
[313225917,1706970647293,-500.0,0.00029589,2]
[313225918,1706970647303,-3129.74,0.00029589,2]
[313225919,1706970647312,-10865.22,0.00029589,2]
[313225920,1706970647321,-4533.96,0.00029589,2]
[313225921,1706970647332,-2481.11,0.00029589,2]
[313225922,1706970647342,-294.36154802,0.00029695,2]
[313225923,1706970647351,-855.703625,0.00029719,2]
[313225924,1706970647361,-548.709029,0.00029719,2]
[313225925,1706970647370,-2349.61342798,0.0002983,2]
[313225926,1706970647380,-1583.44473922,0.00029861,2]
[313225927,1706970647389,-156.38475072,0.00029862,2]
[313225928,1706970647399,-200.99449137,0.00029862,2]
[313225929,1706970647408,-500.0,0.00029863,2]
[313225930,1706970647418,-770.64,0.00029863,2]
[313225931,1706970647427,-500.0,0.00029863,2]
[313225932,1706970647437,-319.164894,0.00029863,2]
[313225933,1706970647446,-319.164893,0.00029863,2]
[313225934,1706970647455,-500.0,0.00029863,2]
[313225935,1706970647465,-534.13,0.00029863,2]
[313225936,1706970647474,-1453.18,0.00029863,2]
[313225937,1706970647484,-500.0,0.00029863,2]
[313225938,1706970647494,-741.37,0.00029863,2]
[313225939,1706970647507,-1201.73,0.00029863,2]
[313225940,1706970647516,-1734.29,0.00029863,2]
[313225941,1706970647526,-500.0,0.00029863,2]
[313225942,1706970647536,-3129.74,0.00029863,2]
[313225943,1706970647545,-10865.22,0.00029863,2]
[313225944,1706970647555,-4533.96,0.00029863,2]
[313225945,1706970647569,-2481.11,0.00029863,2]
[313225946,1706970647578,-36188.08984627,0.0002988,2]
[313225947,1706970647592,-345.58677069,0.0002988,2]
[313226025,1706971833876,-1017.12321481,0.00021038,2]
[313226027,1706971833886,-572.77668425,0.00021039,2]
[313226029,1706971833895,-1245.2446068,0.0002104,2]
[313226031,1706971833905,-155.0341075,0.00021815,4]
[313226033,1706971833917,-155.0341075,0.00021815,2]
[313226035,1706971833926,-213.88818253,0.00021816,2]
[313226037,1706971833935,-15651.47925234,0.00021816,2]
[313226039,1706971833944,-295.5059802,0.00021817,2]
[313226041,1706971833953,-264.19538376,0.00021817,2]
[313226043,1706971833965,-5219.85027609,0.00021817,2]
[313226045,1706971833974,-169.636899,0.00021819,2]
[313226047,1706971833983,-166.666666,0.00021918,2]
[313226049,1706971833993,-426.88835692,0.00022,2]
[313226050,1706971834002,-1164.20299793,0.00022,2]
[313226053,1706971834015,-2813.243183,0.00022,2]
[313226055,1706971834025,-326.17134224,0.0002223,2]
[313226057,1706971834034,-3117.83,0.00022231,3]
[313226059,1706971834043,-52.3132613,0.00022241,2]
[313226061,1706971834054,-70631.46291684,0.00022241,2]
[313226063,1706971834066,-652.85347624,0.00022241,2]
[313226066,1706971834077,-12528.55092983,0.00022241,2]
[313226068,1706971834087,-13250.05386517,0.00022244,2]
[313226104,1706971837951,-426.88835692,0.00022229,2]
[313226105,1706971837963,-667.36410561,0.00022244,2]
[313226106,1706971838004,-10982.58202922,0.00022244,2]
[313226107,1706971838015,-166.666666,0.00022502,2]
[313226108,1706971838024,-1262.10938839,0.00023,2]
[313226109,1706971838033,-166.666666,0.00023085,2]
[313226110,1706971838042,-9959.98060866,0.00023223,2]
[313226111,1706971838052,-155.20961041,0.00023232,2]
[313226112,1706971838061,-154.83739406,0.00023254,2]
[313226113,1706971838070,-512.6875307,0.00023373,2]
[313226114,1706971838079,-3878.22590192,0.0002347,2]
[313226115,1706971838088,-245.76735753,0.0002347,2]
[313226116,1706971838098,-166.666666,0.00023669,2]
[313226117,1706971838108,-821.38040503,0.00024,2]
[313226118,1706971838117,-154.83739402,0.00024219,2]
[313226119,1706971838126,-166.666666,0.00024253,2]
[313226120,1706971838135,-166.666666,0.00024837,2]
[313226121,1706971838144,-3487.92723672,0.0002489,2]
[313226122,1706971838153,-335.29979556,0.00025,2]
[313226123,1706971838162,-154.83739402,0.00025185,2]
[313226124,1706971838174,-500.0,0.00025372,2]
[313226125,1706971838184,-500.0,0.00025372,2]
[313226126,1706971838193,-374.32229926,0.00025372,2]
[313226127,1706971838207,-500.0,0.00025372,2]
[313226128,1706971838217,-500.0,0.00025372,2]
[313226129,1706971838226,-500.0,0.00025372,2]
[313226130,1706971838239,-500.0,0.00025372,2]
[313226131,1706971838248,-311.37143275,0.00025372,2]
[313226132,1706971838257,-500.0,0.00025372,2]
[313226133,1706971838267,-500.0,0.00025372,2]
[313226134,1706971838276,-500.0,0.00025372,2]
[313226135,1706971838285,-383.14651293,0.00025372,2]
[313226136,1706971838294,-500.0,0.00025372,2]
[313226137,1706971838303,-500.0,0.00025372,2]
[313226138,1706971838313,-500.0,0.00025372,2]
[313226139,1706971838322,-500.0,0.00025372,2]
[313226140,1706971838331,-500.0,0.00025372,2]
[313226141,1706971838340,-500.0,0.00025372,2]
[313226142,1706971838350,-500.0,0.00025372,2]
[313226143,1706971838358,-500.0,0.00025372,2]
[313226144,1706971838368,-500.0,0.00025372,2]
[313226145,1706971838376,-332.96726867,0.00025372,2]
[313226146,1706971838386,-500.0,0.00025372,2]
[313226147,1706971838395,-500.0,0.00025372,2]
[313226148,1706971838405,-400.0,0.00025372,2]
[313226149,1706971838414,-500.0,0.00025372,2]
[313226150,1706971838423,-500.0,0.00025372,2]
[313226151,1706971838432,-500.0,0.00025372,2]
[313226152,1706971838442,-500.0,0.00025372,2]
[313226153,1706971838452,-500.0,0.00025372,2]
[313226154,1706971838461,-500.0,0.00025372,2]
[313226155,1706971838471,-500.0,0.00025372,2]
[313226156,1706971838481,-500.0,0.00025372,2]
[313226157,1706971838490,-500.0,0.00025372,2]
[313226158,1706971838499,-250.0,0.00025372,2]
[313226159,1706971838509,-500.0,0.00025372,2]
[313226160,1706971838520,-500.0,0.00025372,2]
[313226161,1706971838529,-500.0,0.00025372,2]
[313226162,1706971838541,-500.0,0.00025372,2]
[313226163,1706971838551,-500.0,0.00025372,2]
[313226164,1706971838560,-500.0,0.00025372,2]
[313226165,1706971838570,-258.06891963,0.00025372,2]
[313226166,1706971838580,-391.0,0.00025372,2]
[313226167,1706971838589,-500.0,0.00025372,2]
[313226168,1706971838599,-388.58437497,0.00025372,2]
[313226169,1706971838608,-500.0,0.00025372,2]
[313226170,1706971838618,-500.0,0.00025372,2]
[313226171,1706971838627,-500.0,0.00025372,2]
[313226172,1706971838636,-500.0,0.00025372,2]
[313226173,1706971838646,-500.0,0.00025372,2]
[313226174,1706971838655,-500.0,0.00025372,2]
[313226175,1706971838665,-500.0,0.00025372,2]
[313226176,1706971838675,-500.0,0.00025372,2]
[313226177,1706971838684,-500.0,0.00025372,2]
[313226178,1706971838693,-80672.84909144,0.00025373,2]
[313226179,1706971838703,-25144.78684649,0.00025373,2]
[313226180,1706971838712,-1446.47950049,0.00025429,2]
[313226181,1706971838722,-245.92623635,0.00025568,2]
[313226182,1706971838732,-200.0,0.00025677,7]
[313226183,1706971838741,-780.35887145,0.00026127,2]
[313226184,1706971838750,-154.83739402,0.0002615,2]
[313226185,1706971838760,-512.6875307,0.00026235,3]
[313226186,1706971838769,-155.30404275,0.00026259,2]
[313226187,1706971838778,-1854.10885603,0.00026391,2]
[313226188,1706971838788,-489.39541102,0.00026391,2]
[313226189,1706971838797,-1397.1010222,0.00026391,2]
[313226190,1706971838806,-346.04207608,0.00026391,2]
[313226191,1706971838816,-155.49210809,0.00026391,2]
[313226192,1706971838826,-199.40706309,0.00026391,2]
[313226193,1706971838835,-155.33135007,0.00026391,2]
[313226194,1706971838844,-166.97150548,0.00026391,2]
[313226195,1706971838853,-181.15956934,0.00026391,2]
[313226196,1706971838862,-904.27081356,0.00026391,2]
[313226197,1706971838871,-20885.80394062,0.00026392,2]
[313226198,1706971838881,-48933.02600869,0.000271,2]
[313226199,1706971838890,-154.83739402,0.00027115,2]
[313226200,1706971838900,-2750.18193004,0.00027215,2]
[313226201,1706971838909,-500.0,0.00027397,2]
[313226202,1706971838920,-500.0,0.00027397,2]
[313226203,1706971838930,-500.0,0.00027397,2]
[313226204,1706971838940,-1757.46,0.00027397,2]
[313226205,1706971838950,-500.0,0.00027397,2]
[313226206,1706971838961,-500.0,0.00027397,2]
[313226207,1706971838970,-500.0,0.00027397,2]
[313226208,1706971838980,-505.91505518,0.00027397,2]
[313226209,1706971838991,-500.0,0.00027397,2]
[313226210,1706971839002,-500.0,0.00027397,2]
[313226211,1706971839012,-500.0,0.00027397,2]
[313226212,1706971839024,-500.0,0.00027397,2]
[313226213,1706971839034,-320.28093465,0.00027397,2]
[313226214,1706971839044,-505.61619828,0.00027397,2]
[313226215,1706971839054,-500.0,0.00027397,2]
[313226216,1706971839065,-503.63711727,0.00027397,2]
[313226217,1706971839076,-301.93124772,0.00027397,2]
[313226218,1706971839085,-505.61402559,0.00027397,7]
[313226219,1706971839096,-500.0,0.00027397,2]
[313226220,1706971839105,-516.25072468,0.00027397,2]
[313226221,1706971839115,-500.0,0.00027397,2]
[313226222,1706971839126,-503.37405009,0.00027397,2]
[313226223,1706971839137,-500.0,0.00027397,2]
[313226224,1706971839146,-503.75418424,0.00027397,2]
[313226225,1706971839155,-500.0,0.00027397,2]
[313226226,1706971839167,-505.95287227,0.00027397,2]
[313226227,1706971839176,-501.95979755,0.00027397,2]
[313226228,1706971839185,-166.70098911,0.00027397,2]
[313226229,1706971839194,-501.56367019,0.00027397,2]
[313226230,1706971839203,-176.33972775,0.00027397,2]
[313226231,1706971839212,-500.0,0.00027397,2]
[313226232,1706971839221,-240.43038265,0.00027397,2]
[313226233,1706971839231,-500.0,0.00027397,2]
[313226234,1706971839241,-500.0,0.00027397,2]
[313226235,1706971839250,-308.37268485,0.00027397,2]
[313226236,1706971839259,-500.0,0.00027397,2]
[313226237,1706971839268,-180.9410393,0.00027397,2]
[313226238,1706971839277,-530.44382497,0.00027397,2]
[313226239,1706971839287,-509.16728415,0.00027397,2]
[313226240,1706971839296,-8474.17,0.00027397,2]
[313226241,1706971839305,-500.0,0.00027397,2]
[313226242,1706971839314,-500.0,0.00027397,2]
[313226243,1706971839323,-3357.82,0.00027397,2]
[313226244,1706971839332,-500.0,0.00027397,2]
[313226245,1706971839341,-500.0,0.00027397,2]
[313226246,1706971839350,-500.0,0.00027397,2]
[313226247,1706971839359,-500.0,0.00027397,2]
[313226248,1706971839368,-500.0,0.00027397,2]